fUSD/lending_fUSD_20251123
["ID","MTS","AMOUNT","RATE_DAILY","PERIOD"]
[394734399,1763921440037,-500.0,0.00022876,2]
[394734400,1763921440046,-500.0,0.00022876,2]
[394734401,1763921440056,-500.0,0.00022876,2]
[394734402,1763921440066,-624.87820617,0.00022876,2]
[394734403,1763921440075,-500.0,0.00022876,2]
[394734404,1763921440084,-500.0,0.00022876,2]
[394734405,1763921440095,-500.0,0.00022876,2]
[394734406,1763921440104,-567.98,0.00022876,2]
[394734407,1763921440114,-500.0,0.00022876,2]
[394734408,1763921440124,-500.0,0.00022876,2]
[394734409,1763921440134,-500.0,0.00022876,2]
[394734410,1763921440144,-500.0,0.00022876,2]
[394734411,1763921440153,-500.0,0.00022876,2]
[394734412,1763921440163,-1000.0,0.00022878,2]
[394734413,1763921440172,-1052.98,0.00022878,2]
[394734414,1763921440182,-165.31,0.00022916,2]
[394734415,1763921440192,-500.0,0.00022977,2]
[394734416,1763921440206,-500.0,0.00022977,2]
[394734417,1763921440216,-282.96407984,0.00022977,2]
[394734418,1763921440226,-500.0,0.00022977,2]
[394734419,1763921440235,-500.0,0.00022977,2]
[394734420,1763921440245,-705.0,0.00022986,2]
[394734421,1763921440254,-567.98,0.0002315,2]
[394734422,1763921440263,-705.0,0.00023353,2]
[394734423,1763921440273,-823.0,0.00023381,2]
[394734424,1763921440282,-567.98,0.00023424,2]
[394734425,1763921440291,-500.0,0.00023533,2]
[394734426,1763921440300,-705.0,0.00023542,2]
[394734427,1763921440313,-705.0,0.00023557,2]
[394734428,1763921440324,-705.0,0.00023614,2]
[394734429,1763921440333,-705.0,0.00023619,2]
[394734430,1763921440343,-1000.0,0.00023629,2]
[394734431,1763921440353,-567.98,0.00023698,2]
[394734432,1763921440363,-567.98,0.00023972,2]
[394734433,1763921440373,-705.0,0.00024022,2]
[394734434,1763921440382,-705.0,0.00024024,2]
[394734435,1763921440391,-1000.0,0.00024081,2]
[394734436,1763921440405,-705.0,0.00024111,2]
[394734437,1763921440414,-705.0,0.0002413,2]
[394734438,1763921440424,-705.0,0.00024228,2]
[394734439,1763921440434,-568.0,0.00024246,2]
[394734440,1763921440443,-705.0,0.00024247,2]
[394734441,1763921440454,-165.31,0.00024348,2]
[394734442,1763921440464,-705.0,0.00024449,2]
[394734443,1763921440473,-705.0,0.00024455,2]
[394734444,1763921440482,-1000.0,0.00024483,2]
[394734445,1763921440493,-10560.83615566,0.00024577,2]
[394734446,1763921440503,-705.0,0.00024601,2]
[394734447,1763921440784,-705.0,0.00024619,2]
[394734448,1763921440808,-457.02634231,0.00024629,2]
[394734449,1763921440818,-1791.10183055,0.0002465,2]
[394734450,1763921440828,-705.0,0.00024729,2]
[394734451,1763921440838,-553.03390002,0.00024755,2]
[394734452,1763921440847,-500.0,0.00024799,2]
[394734453,1763921440857,-500.0,0.00024799,2]
[394734454,1763921440867,-500.0,0.00024799,2]
[394734455,1763921440876,-500.0,0.00024799,2]
[394734456,1763921440885,-705.0,0.00024855,2]
[394734457,1763921440895,-705.0,0.00024949,2]
[394734458,1763921440904,-705.0,0.00024996,2]
[394734459,1763921440913,-705.0,0.00025095,2]
[394734460,1763921440923,-705.0,0.00025104,2]
[394734461,1763921440932,-705.0,0.00025226,2]
[394734462,1763921440941,-705.0,0.00025276,2]
[394734463,1763921440950,-1000.0,0.00025337,2]
[394734464,1763921440959,-705.0,0.00025352,2]
[394734465,1763921440969,-1152.0,0.00025511,2]
[394734466,1763921440978,-165.31,0.0002578,2]
[394734467,1763921440988,-160.55159976,0.00025798,2]
[394734468,1763921440997,-1000.0,0.00026191,2]
[394734469,1763921441006,-1791.10183055,0.00026522,2]
[394734470,1763921441016,-2210.792694,0.00027,2]
[394734471,1763921441026,-165.31,0.00027212,2]
[394734472,1763921441035,-500.0,0.00027397,2]
[394734473,1763921441045,-500.0,0.00027397,2]
[394734474,1763921441054,-500.0,0.00027397,2]
[394734475,1763921441065,-500.0,0.00027397,2]
[394734476,1763921441081,-514.17,0.00027397,2]
[394734477,1763921441094,-32809.69,0.00027397,2]
[394734478,1763921441104,-553.03389997,0.00027446,2]
[394734479,1763921441114,-229.0,0.00027835,2]
[394734480,1763921441124,-164.0,0.00028,14]
[394734481,1763921441134,-1791.10183055,0.00028394,2]
[394734482,1763921441144,-165.31,0.00028644,2]
[394734483,1763921441154,-160.55159976,0.00028819,2]
[394734484,1763921441164,-245.77,0.000292,7]
[394734485,1763921441175,-164.0,0.00029306,14]
[394734486,1763921441186,-165.31,0.00030077,2]
[394734487,1763921441197,-553.03389997,0.00030137,2]
[394734488,1763921441208,-1791.10183055,0.00030266,2]
[394734489,1763921441218,-195.20151301,0.00030443,2]
[394734490,1763921441229,-922.0,0.00031,2]
[394734491,1763921441240,-165.31,0.00031509,2]
[394734492,1763921441250,-150.0,0.000318,14]
[394734493,1763921441260,-160.55159976,0.00031839,15]
[394734494,1763921441270,-1791.10183055,0.00032138,2]
[394734495,1763921441280,-500.0,0.00032433,2]
[394734496,1763921441291,-20127.13,0.00032434,2]
[394734497,1763921441302,-150.0,0.00032474,4]
[394734498,1763921441311,-150.0,0.00032474,4]
[394734499,1763921441321,-150.0,0.00032474,4]
[394734500,1763921441331,-150.0,0.00032474,4]
[394734501,1763921441340,-150.0,0.00032474,4]
[394734502,1763921441349,-150.0,0.00032474,4]
[394734503,1763921441360,-150.0,0.00032474,4]
[394734504,1763921441369,-150.0,0.00032474,4]
[394734505,1763921441379,-150.0,0.00032474,4]
[394734506,1763921441389,-150.0,0.00032474,4]
[394734507,1763921441398,-153.05562108,0.00032474,4]
[394734508,1763921441408,-150.0,0.00032474,4]
[394734509,1763921441418,-150.0,0.00032474,4]
[394734510,1763921441429,-245.77,0.000325,7]
[394734511,1763921441438,-163.37,0.000325,30]
[394734512,1763921441448,-553.03389997,0.00032828,2]
[394734513,1763921441458,-165.31,0.00032941,2]
[394734514,1763921441468,-548.955127,0.00033,14]
[394734515,1763921441478,-461.0,0.00033,2]
[394734516,1763921441488,-1371.0,0.00033807,5]
[394734517,1763921441498,-461.0,0.00034,2]
[394734518,1763921441508,-1791.10183055,0.0003401,2]
[394734519,1763921441519,-252.477,0.00034269,38]
[394734520,1763921441531,-3950.05,0.00034269,38]
[394734521,1763921441541,-150.0,0.00034278,7]
[394734522,1763921441552,-150.0,0.00034278,7]
[394734523,1763921441563,-150.0,0.00034278,7]
[394734524,1763921441573,-165.31,0.00034373,2]
[394734525,1763921441584,-500.0,0.00034521,2]
[394734526,1763921441594,-163.37,0.000346,30]
[394734527,1763921441604,-160.55159976,0.00034859,15]
[394734528,1763921441618,-908.0,0.00035031,2]
[394734529,1763921441629,-1192.0,0.00035031,2]
[394734530,1763921441641,-2659.0,0.00035031,2]
[394734531,1763921441651,-561.0,0.00035031,2]
[394734532,1763921441661,-298.28,0.00035031,2]
[394734533,1763921441671,-301.72,0.00035031,2]
[394734534,1763921441681,-6497.0,0.00035031,2]
[394734535,1763921441691,-150.0,0.00035187,2]
[394734536,1763921441703,-150.0,0.00035187,2]
[394734537,1763921441713,-247.503,0.00035187,2]
[394734538,1763921441724,-150.0,0.00035187,2]
[394734539,1763921441734,-250.0,0.00035187,2]
[394734540,1763921441743,-151.243,0.00035187,2]
[394734541,1763921441753,-250.0,0.00035187,2]
[394734542,1763921441763,-223.225,0.00035187,2]
[394734543,1763921441773,-162.0,0.00035187,2]
[394734544,1763921441786,-609.0,0.00035187,2]
[394734545,1763921441795,-576.0,0.00035187,2]
[394734546,1763921441805,-1320.0,0.00035187,2]
[394734547,1763921441815,-3436.0,0.00035187,2]
[394734548,1763921441827,-822.0,0.00035187,2]
[394734549,1763921441837,-1601.0,0.00035187,2]
[394734550,1763921441847,-659.0,0.00035187,2]
[394734551,1763921441856,-1256.0,0.00035187,2]
[394734552,1763921441869,-553.03389997,0.00035518,2]
[394734553,1763921441879,-1791.10183055,0.00035882,2]
[394734554,1763921441899,-1036.94,0.00036,2]
[394734555,1763921441910,-292.78050892,0.00036031,8]
[394734556,1763921441919,-500.0,0.00036031,7]
[394734557,1763921441930,-500.0,0.00036031,8]
[394734558,1763921441945,-500.0,0.00036031,2]
[394734559,1763921441957,-150.0,0.00036082,7]
[394734560,1763921441972,-150.0,0.00036082,7]
[394734561,1763921441984,-150.0,0.00036082,7]
[394734562,1763921441995,-150.0,0.00036082,7]
[394734563,1763921442004,-150.0,0.00036082,7]
[394734564,1763921442015,-150.0,0.00036082,7]
[394734565,1763921442029,-150.0,0.00036082,7]
[394734566,1763921442039,-150.0,0.00036082,7]
[394734567,1763921442050,-212.0,0.00036225,2]
[394734568,1763921442060,-212.0,0.00036225,2]
[394734569,1763921442071,-212.0,0.00036225,2]
[394734570,1763921442081,-212.0,0.00036225,2]
[394734571,1763921442091,-212.0,0.00036225,2]
[394734572,1763921442102,-212.0,0.00036225,2]
[394734573,1763921442112,-212.0,0.00036225,2]
[394734574,1763921442123,-212.0,0.00036225,2]
[394734575,1763921442133,-212.0,0.00036225,2]
[394734576,1763921442143,-212.0,0.00036225,2]
[394734577,1763921442153,-153.0,0.00036226,2]
[394734578,1763921442163,-153.0,0.00036226,2]
[394734579,1763921442173,-153.0,0.00036226,2]
[394734580,1763921442184,-153.0,0.00036226,2]
[394734581,1763921442193,-210.0,0.00036229,2]
[394734582,1763921442203,-210.0,0.00036229,2]
[394734583,1763921442213,-210.0,0.00036229,2]
[394734584,1763921442223,-210.0,0.00036229,2]
[394734585,1763921442233,-210.0,0.00036229,2]
[394734586,1763921442243,-210.0,0.00036229,2]
[394734587,1763921442252,-210.0,0.00036229,2]
[394734588,1763921442263,-210.0,0.00036229,2]
[394734589,1763921442273,-210.0,0.00036229,2]
[394734590,1763921442283,-210.0,0.00036229,2]
[394734591,1763921442293,-153.0,0.00036229,2]
[394734592,1763921442303,-153.0,0.00036229,2]
[394734593,1763921442313,-153.0,0.00036229,2]
[394734594,1763921442323,-153.0,0.00036229,2]
[394734595,1763921442333,-153.0,0.00036237,2]
[394734596,1763921442343,-153.0,0.00036237,2]
[394734597,1763921442353,-153.0,0.00036237,2]
[394734598,1763921442363,-153.0,0.00036237,2]
[394734599,1763921442373,-200.0,0.0003627,2]
[394734600,1763921442383,-200.0,0.0003627,2]
[394734601,1763921442396,-200.0,0.0003627,2]
[394734602,1763921442407,-200.0,0.0003627,2]
[394734603,1763921442417,-200.0,0.0003627,2]
[394734604,1763921442427,-1036.94,0.0003672,2]
[394734605,1763921442436,-196.54805429,0.000368,2]
[394734606,1763921442446,-353.43271123,0.000368,2]
[394734607,1763921442456,-163.37,0.000368,30]
[394734608,1763921442466,-258.98096565,0.00036832,5]
[394734609,1763921442476,-162.99,0.00037004,30]
[394734610,1763921442486,-213.5948793,0.00037281,2]
[394734611,1763921442496,-2383.4177731,0.00037281,2]
[394734612,1763921442505,-245.77,0.000374,14]
[394734613,1763921442515,-1000.0,0.000375,2]
[394734614,1763921442525,-3000.0,0.00037534,7]
[394734615,1763921442536,-166.66,0.00037552,2]
[394734617,1763921442546,-217.83804073,0.00037613,2]
[394734618,1763921442556,-169.02,0.00037726,2]
[394734619,1763921442565,-1791.10183055,0.00037754,2]
[394734620,1763921442575,-160.55159976,0.0003788,15]
[394734621,1763921442585,-1442.81918711,0.00037937,2]
[394734622,1763921442596,-1175.1,0.00037945,2]
[394734623,1763921442606,-217.83804074,0.00037991,2]
[394734624,1763921442615,-151.0,0.00038,30]
[394734625,1763921442625,-163.37,0.00038,30]
[394734626,1763921442635,-908.0,0.00038031,2]
[394734627,1763921442645,-1192.0,0.00038031,2]
[394734628,1763921442654,-2659.0,0.00038031,2]
[394734629,1763921442664,-561.0,0.00038031,2]
[394734630,1763921442674,-150.0,0.00038031,2]
[394734631,1763921442684,-252.0,0.00038031,2]
[394734632,1763921442694,-6497.0,0.00038031,2]
[394734633,1763921442704,-1253.0,0.00038034,20]
[394734634,1763921442714,-151.0,0.00038081,30]
[394734635,1763921442723,-151.0,0.00038081,30]
[394734636,1763921442733,-151.0,0.00038081,30]
[394734637,1763921442743,-500.0,0.00038081,30]
[394734638,1763921442754,-1500.0,0.00038081,30]
[394734639,1763921442764,-5000.0,0.00038081,30]
[394734640,1763921442780,-520.0,0.00038081,30]
[394734641,1763921442791,-6888.0,0.00038081,30]
[394734642,1763921442800,-600.0,0.00038081,30]
[394734643,1763921442810,-151.0,0.00038081,30]
[394734644,1763921442821,-151.0,0.00038081,30]
[394734645,1763921442831,-151.0,0.00038081,30]
[394734646,1763921442842,-1500.0,0.00038081,30]
[394734647,1763921442852,-5000.0,0.00038081,30]
[394734648,1763921442862,-539.24,0.00038081,30]
[394734649,1763921442872,-5569.42811903,0.00038081,30]
[394734650,1763921442882,-518.5,0.00038081,30]
[394734651,1763921442891,-600.0,0.00038081,30]
[394734652,1763921442901,-256.74048497,0.00038081,30]
[394734653,1763921442911,-151.0,0.00038081,30]
[394734654,1763921442920,-1500.0,0.00038081,30]
[394734655,1763921442930,-5000.0,0.00038081,30]
[394734656,1763921442940,-559.19188,0.00038081,30]
[394734657,1763921442950,-537.6845,0.00038081,30]
[394734658,1763921442960,-600.0,0.00038081,30]
[394734659,1763921442970,-151.0,0.00038081,30]
[394734660,1763921442980,-1500.0,0.00038081,30]
[394734661,1763921442990,-3704.68415718,0.00038081,30]
[394734662,1763921443000,-579.88197956,0.00038081,30]
[394734663,1763921443010,-557.5788265,0.00038081,30]
[394734664,1763921443019,-600.0,0.00038081,30]
[394734665,1763921443029,-151.0,0.00038081,30]
[394734666,1763921443039,-1500.0,0.00038081,30]
[394734667,1763921443049,-500.0,0.00038081,30]
[394734668,1763921443059,-601.3376128,0.00038081,30]
[394734669,1763921443069,-578.20924308,0.00038081,30]
[394734670,1763921443079,-600.0,0.00038081,30]
[394734671,1763921443089,-151.0,0.00038081,30]
[394734672,1763921443099,-1500.0,0.00038081,30]
[394734673,1763921443110,-500.0,0.00038081,30]
[394734674,1763921443122,-623.58710448,0.00038081,30]
[394734675,1763921443133,-600.0,0.00038081,30]
[394734676,1763921443142,-151.0,0.00038081,30]
[394734677,1763921443159,-1500.0,0.00038081,30]
[394734678,1763921443169,-500.0,0.00038081,30]
[394734679,1763921443179,-646.65982734,0.00038081,30]
[394734680,1763921443188,-600.0,0.00038081,30]
[394734681,1763921443198,-620.0,0.00038081,30]
[394734682,1763921443207,-151.0,0.00038081,30]
[394734683,1763921443218,-1500.0,0.00038081,30]
[394734684,1763921443227,-151.68414985,0.00038081,30]
[394734687,1763921443627,-670.58624095,0.00038081,30]
[394734688,1763921443637,-600.0,0.00038081,30]
[394734689,1763921443647,-620.0,0.00038081,30]
[394734690,1763921443657,-154.1399948,0.00038081,30]
[394734691,1763921443666,-1500.0,0.00038081,30]
[394734692,1763921443676,-537.6845,0.00038081,30]
[394734693,1763921443685,-695.39793187,0.00038081,30]
[394734694,1763921443695,-600.0,0.00038081,30]
[394734695,1763921443704,-1500.0,0.00038081,30]
[394734696,1763921443713,-731.06836987,0.00038081,30]
[394734697,1763921443723,-600.0,0.00038081,30]
[394734698,1763921443732,-1500.0,0.00038081,30]
[394734699,1763921443741,-600.0,0.00038081,30]
[394734700,1763921443751,-500.0,0.00038081,30]
[394734701,1763921443760,-1500.0,0.00038081,30]
[394734702,1763921443770,-600.0,0.00038081,30]
[394734703,1763921443783,-1500.0,0.00038081,30]
[394734704,1763921443792,-600.0,0.00038081,30]
[394734705,1763921443801,-250.0,0.00038081,30]
[394734706,1763921443810,-1500.0,0.00038081,30]
[394734707,1763921443820,-500.0,0.00038081,30]
[394734708,1763921443829,-600.0,0.00038081,30]
[394734709,1763921443839,-250.0,0.00038081,30]
[394734710,1763921443848,-1500.0,0.00038081,30]
[394734711,1763921443860,-500.0,0.00038081,30]
[394734712,1763921443869,-500.0,0.00038081,30]
[394734713,1763921443878,-500.0,0.00038081,30]
[394734714,1763921443887,-600.0,0.00038081,30]
[394734715,1763921443897,-250.0,0.00038081,30]
[394734716,1763921443907,-1500.0,0.00038081,30]
[394734717,1763921443916,-500.0,0.00038081,30]
[394734718,1763921443925,-500.0,0.00038081,30]
[394734719,1763921443935,-500.0,0.00038081,30]
[394734720,1763921443945,-250.0,0.00038081,30]
[394734721,1763921443960,-500.0,0.00038081,30]
[394734722,1763921443975,-250.0,0.00038081,30]
[394734723,1763921443985,-500.0,0.00038081,30]
[394734724,1763921443995,-500.0,0.00038081,30]
[394734725,1763921444006,-1500.0,0.00038081,30]
[394734726,1763921444016,-500.0,0.00038081,30]
[394734727,1763921444026,-250.0,0.00038081,30]
[394734728,1763921444037,-500.0,0.00038081,30]
[394734729,1763921444047,-500.0,0.00038081,30]
[394734730,1763921444058,-1500.0,0.00038081,30]
[394734731,1763921444068,-250.0,0.00038081,30]
[394734732,1763921444079,-500.0,0.00038081,30]
[394734733,1763921444090,-500.0,0.00038081,30]
[394734734,1763921444100,-250.0,0.00038081,30]
[394734735,1763921444110,-250.0,0.00038081,30]
[394734736,1763921444120,-500.0,0.00038081,30]
[394734737,1763921444130,-1098.0534169,0.00038081,30]
[394734738,1763921444141,-500.0,0.00038081,30]
[394734739,1763921444151,-250.0,0.00038081,30]
[394734740,1763921444161,-500.0,0.00038081,30]
[394734741,1763921444172,-500.0,0.00038081,30]
[394734742,1763921444182,-250.0,0.00038081,30]
[394734743,1763921444192,-250.0,0.00038081,30]
[394734744,1763921444203,-500.0,0.00038081,30]
[394734745,1763921444214,-500.0,0.00038081,30]
[394734746,1763921444224,-500.0,0.00038081,30]
[394734747,1763921444235,-250.0,0.00038081,30]
[394734748,1763921444245,-500.0,0.00038081,30]
[394734749,1763921444255,-414.0,0.00038081,30]
[394734750,1763921444265,-250.0,0.00038081,30]
[394734751,1763921444275,-250.0,0.00038081,30]
[394734752,1763921444285,-500.0,0.00038081,30]
[394734753,1763921444296,-500.0,0.00038081,30]
[394734754,1763921444307,-250.0,0.00038081,30]
[394734755,1763921444316,-500.0,0.00038081,30]
[394734756,1763921444326,-500.0,0.00038081,30]
[394734757,1763921444336,-429.318,0.00038081,30]
[394734758,1763921444346,-250.0,0.00038081,30]
[394734759,1763921444357,-250.0,0.00038081,30]
[394734760,1763921444367,-500.0,0.00038081,30]
[394734761,1763921444378,-500.0,0.00038081,30]
[394734762,1763921444388,-500.0,0.00038081,30]
[394734763,1763921444398,-250.0,0.00038081,30]
[394734764,1763921444408,-500.0,0.00038081,30]
[394734765,1763921444418,-445.202766,0.00038081,30]
[394734766,1763921444428,-250.0,0.00038081,30]
[394734767,1763921444438,-500.0,0.00038081,30]
[394734768,1763921444448,-500.0,0.00038081,30]
[394734769,1763921444459,-520.78286561,0.00038081,30]
[394734770,1763921444469,-250.0,0.00038081,30]
[394734772,1763921444479,-500.0,0.00038081,30]
[394734773,1763921444489,-461.67526834,0.00038081,30]
[394734774,1763921444500,-250.0,0.00038081,30]
[394734775,1763921444510,-500.0,0.00038081,30]
[394734776,1763921444519,-250.0,0.00038081,30]
[394734777,1763921444529,-500.0,0.00038081,30]
[394734778,1763921444539,-500.0,0.00038081,30]
[394734779,1763921444548,-478.75725327,0.00038081,30]
[394734780,1763921444558,-250.0,0.00038081,30]
[394734781,1763921444567,-500.0,0.00038081,30]
[394734782,1763921444577,-250.0,0.00038081,30]
[394734783,1763921444587,-500.0,0.00038081,30]
[394734784,1763921444597,-565.18298562,0.00038081,30]
[394734785,1763921444607,-496.47127164,0.00038081,30]
[394734786,1763921444617,-250.0,0.00038081,30]
[394734787,1763921444627,-500.0,0.00038081,30]
[394734788,1763921444636,-500.0,0.00038081,30]
[394734789,1763921444647,-514.84070869,0.00038081,30]
[394734790,1763921444656,-276.4808023,0.00038081,30]
[394734791,1763921444667,-250.0,0.00038081,30]
[394734792,1763921444676,-500.0,0.00038081,30]
[394734793,1763921444687,-500.0,0.00038081,30]
[394734794,1763921444697,-533.88981491,0.00038081,30]
[394734795,1763921444707,-250.0,0.00038081,30]
[394734796,1763921444716,-500.0,0.00038081,30]
[394734797,1763921444727,-500.0,0.00038081,30]
[394734798,1763921444736,-553.64373807,0.00038081,30]
[394734799,1763921444746,-500.0,0.00038081,30]
[394734800,1763921444757,-250.0,0.00038081,30]
[394734801,1763921444767,-500.0,0.00038081,30]
[394734802,1763921444777,-500.0,0.00038081,30]
[394734803,1763921444791,-574.12855637,0.00038081,30]
[394734804,1763921444801,-500.0,0.00038081,30]
[394734805,1763921444812,-250.0,0.00038081,30]
[394734806,1763921444822,-220.0,0.00038081,30]
[394734807,1763921444833,-500.0,0.00038081,30]
[394734808,1763921444843,-574.12855637,0.00038081,30]
[394734809,1763921444855,-500.0,0.00038081,30]
[394734810,1763921444865,-250.0,0.00038081,30]
[394734811,1763921444875,-500.0,0.00038081,30]
[394734812,1763921444892,-220.0,0.00038081,30]
[394734813,1763921444910,-500.0,0.00038081,30]
[394734814,1763921444920,-250.0,0.00038081,30]
[394734815,1763921444931,-500.0,0.00038081,30]
[394734816,1763921444941,-500.0,0.00038081,30]
[394734817,1763921444951,-370.98335745,0.00038081,30]
[394734818,1763921444961,-500.0,0.00038081,30]
[394734819,1763921444971,-250.0,0.00038081,30]
[394734820,1763921444981,-500.0,0.00038081,30]
[394734821,1763921444991,-500.0,0.00038081,30]
[394734822,1763921445002,-509.45612313,0.00038081,30]
[394734823,1763921445013,-250.0,0.00038081,30]
[394734824,1763921445023,-500.0,0.00038081,30]
[394734825,1763921445033,-500.0,0.00038081,30]
[394734826,1763921445044,-250.0,0.00038081,30]
[394734827,1763921445054,-500.0,0.00038081,30]
[394734828,1763921445066,-500.0,0.00038081,30]
[394734829,1763921445076,-500.0,0.00038081,30]
[394734830,1763921445086,-500.0,0.00038081,30]
[394734831,1763921445096,-250.0,0.00038081,30]
[394734832,1763921445106,-500.0,0.00038081,30]
[394734833,1763921445116,-250.0,0.00038081,30]
[394734834,1763921445125,-500.0,0.00038081,30]
[394734835,1763921445136,-250.0,0.00038081,30]
[394734836,1763921445146,-500.0,0.00038081,30]
[394734837,1763921445157,-250.0,0.00038081,30]
[394734838,1763921445167,-500.0,0.00038081,30]
[394734839,1763921445176,-250.0,0.00038081,30]
[394734840,1763921445186,-151.0,0.00038081,30]
[394734841,1763921445195,-500.0,0.00038081,30]
[394734842,1763921445205,-250.0,0.00038081,30]
[394734843,1763921445215,-151.0,0.00038081,30]
[394734844,1763921445224,-500.0,0.00038081,30]
[394734845,1763921445234,-250.0,0.00038081,30]
[394734846,1763921445244,-294.46166993,0.00038081,30]
[394734847,1763921445254,-500.0,0.00038081,30]
[394734848,1763921445263,-250.0,0.00038081,30]
[394734849,1763921445273,-500.0,0.00038081,30]
[394734850,1763921445282,-267.08032584,0.00038081,30]
[394734851,1763921445291,-500.0,0.00038081,30]
[394734852,1763921445301,-500.0,0.00038081,30]
[394734853,1763921445310,-500.0,0.00038081,30]
[394734854,1763921445319,-500.0,0.00038081,30]
[394734855,1763921445329,-151.0,0.00038081,30]
[394734856,1763921445338,-151.0,0.00038081,30]
[394734857,1763921445348,-157.8410325,0.00038081,30]
[394734858,1763921445358,-1100.0,0.00038082,7]
[394734859,1763921445367,-500.0,0.00038082,7]
[394734860,1763921445378,-285.47253644,0.00038177,2]
[394734861,1763921445405,-500.0,0.00038186,2]
[394734862,1763921445415,-150.0,0.00038187,2]
[394734863,1763921445425,-150.0,0.00038187,2]
[394734864,1763921445434,-609.0,0.00038187,2]
[394734865,1763921445444,-576.0,0.00038187,2]
[394734866,1763921445453,-1320.0,0.00038187,2]
[394734867,1763921445463,-830.0,0.00038187,7]
[394734868,1763921445472,-830.0,0.00038187,7]
[394734869,1763921445482,-3436.0,0.00038187,2]
[394734870,1763921445492,-151.0,0.00038187,2]
[394734871,1763921445502,-151.0,0.00038187,2]
[394734872,1763921445511,-822.0,0.00038187,2]
[394734873,1763921445526,-1601.0,0.00038187,2]
[394734874,1763921445536,-659.0,0.00038187,2]
[394734875,1763921445546,-1256.0,0.00038187,2]
[394734876,1763921445555,-4145.47838,0.00038187,2]
[394734877,1763921445567,-553.03389997,0.00038209,2]
[394734878,1763921445577,-500.0,0.00038345,7]
[394734879,1763921445586,-150.0,0.00038345,20]
[394734880,1763921445596,-500.0,0.00038345,2]
[394734881,1763921445606,-296.9,0.00038355,7]
[394734882,1763921445615,-500.0,0.00038355,2]
[394734883,1763921445625,-500.0,0.00038355,2]
[394734884,1763921445635,-500.0,0.00038355,2]
[394734885,1763921445645,-200.25,0.00038355,2]
[394734886,1763921445658,-500.0,0.00038356,14]
[394734887,1763921445669,-500.0,0.00038356,14]
[394734888,1763921445678,-500.0,0.00038356,14]
[394734889,1763921445687,-500.0,0.00038356,14]
[394734890,1763921445697,-500.0,0.00038356,14]
[394734891,1763921445707,-500.0,0.00038356,14]
[394734892,1763921445715,-500.0,0.00038356,14]
[394734893,1763921445725,-500.0,0.00038356,14]
[394734894,1763921445735,-579.296223,0.00038356,8]
[394734895,1763921445744,-326.206516,0.00038356,8]
[394734896,1763921445754,-153.191146,0.00038356,8]
[394734897,1763921445764,-156.741129,0.00038356,8]
[394734900,1763921445774,-485.716053,0.00038356,8]
[394734903,1763921445787,-154.25143589,0.00038356,8]
[394734904,1763921445796,-516.07016131,0.00038356,8]
[394734905,1763921445806,-500.0,0.00038356,8]
[394734906,1763921445816,-500.0,0.00038356,8]